bitfinex/quotes_BTCUSD_20241009
["timestamp","ask_amount","ask_price","bid_price","bid_amount"]
[1728503756396,0.43952262,61103.0,61102.0,0.000818]
[1728503756598,0.57975872,61103.0,61102.0,0.000818]
[1728503756814,0.7020069,61103.0,61102.0,0.000818]
[1728503757027,0.57975872,61103.0,61102.0,0.000818]
[1728503757229,0.68558334,61103.0,61102.0,0.000818]
[1728503757953,0.67758334,61103.0,61102.0,0.000818]
[1728503758194,0.57975872,61103.0,61102.0,0.000818]
[1728503758365,0.59375872,61103.0,61102.0,0.000818]
[1728503758941,0.58575872,61103.0,61102.0,0.000818]
[1728503759316,0.59975872,61103.0,61102.0,0.000818]
[1728503759533,0.57175872,61103.0,61102.0,0.000818]
[1728503759742,0.57339472,61103.0,61102.0,0.000818]
[1728503759979,0.60139472,61103.0,61102.0,0.000818]
[1728503770310,0.74815324,61103.0,61102.0,0.000818]
[1728503770522,0.60139472,61103.0,61102.0,0.000818]
[1728503770729,0.74815324,61103.0,61102.0,0.000818]
[1728503771363,0.60139472,61103.0,61102.0,0.000818]
[1728503776334,0.30355744,61103.0,61102.0,0.000818]
[1728503776574,0.31029191,61103.0,61102.0,0.079018]
[1728503777233,0.28229191,61103.0,61102.0,0.079018]
[1728503777446,0.31029191,61103.0,61102.0,0.079018]
[1728503777675,0.47109852,61103.0,61102.0,0.000818]
[1728503777888,0.46936405,61103.0,61102.0,0.000818]
[1728503778562,0.61642063,61103.0,61102.0,0.000818]
[1728503778763,0.46936405,61103.0,61102.0,0.000818]
[1728503779461,0.30855744,61103.0,61102.0,0.000818]
[1728503779675,0.31029191,61103.0,61102.0,0.000818]
[1728503779881,0.50169899,61103.0,61102.0,0.000818]
[1728503780113,0.49996452,61103.0,61102.0,0.000818]
[1728503780750,0.64710604,61103.0,61102.0,0.000818]
[1728503780959,0.66077113,61103.0,61102.0,0.000818]
[1728503781178,0.80794193,61103.0,61102.0,0.000818]
[1728503781399,0.66077113,61103.0,61102.0,0.000818]
[1728503781838,0.49496452,61103.0,61102.0,0.000818]
[1728503782266,0.20355744,61103.0,61102.0,0.189418]
[1728503782506,0.20355744,61103.0,61102.0,0.270618]
[1728503782741,0.32620648,61103.0,61102.0,0.270618]
[1728503782965,0.20355744,61103.0,61102.0,0.270618]
[1728503783850,0.29820277,61103.0,61102.0,0.270618]
[1728503784088,0.20355744,61103.0,61102.0,0.270618]
[1728503784984,0.32620277,61103.0,61102.0,0.270618]
[1728503785445,0.3016659,61103.0,61102.0,0.270618]
[1728503786394,0.27713004,61103.0,61102.0,0.270618]
[1728503787059,0.20355744,61103.0,61102.0,0.270618]
[1728503788163,0.27712675,61103.0,61102.0,0.270618]
[1728503788854,0.20355744,61103.0,61102.0,0.270618]
[1728503791692,0.25258763,61103.0,61102.0,0.270618]
[1728503792003,0.2543221,61103.0,61102.0,0.270618]
[1728503792237,0.27886122,61103.0,61102.0,0.270618]
[1728503792451,0.20529191,61103.0,61102.0,0.270618]
[1728503793298,0.20529191,61103.0,61102.0,0.082018]
[1728503795215,0.30333779,61103.0,61102.0,0.082018]
[1728503795417,0.30333779,61103.0,61102.0,0.000818]
[1728503795896,0.27882894,61103.0,61102.0,0.000818]
[1728503796110,0.30334356,61103.0,61102.0,0.000818]
[1728503796552,0.20529191,61103.0,61102.0,0.000818]
[1728503797004,0.32785566,61103.0,61102.0,0.000818]
[1728503797224,0.20355744,61103.0,61102.0,0.000818]
[1728503797413,0.20529191,61103.0,61102.0,0.000818]
[1728503797849,0.23186481,61103.0,61102.0,0.000818]
[1728503798311,0.49770245,61103.0,61102.0,0.000818]
[1728503798517,0.49596798,61103.0,61102.0,0.000818]
[1728503800071,0.46939508,61103.0,61102.0,0.000818]
[1728503801016,0.30855744,61103.0,61102.0,0.178818]
[1728503801225,0.30529191,61103.0,61102.0,0.257118]
[1728503801439,0.30355744,61103.0,61102.0,0.257118]
[1728503804394,0.20355744,61103.0,61102.0,0.257118]
[1728503804605,0.32615541,61103.0,61102.0,0.257118]
[1728503804877,0.20355744,61103.0,61102.0,0.257118]
[1728503805318,0.20529191,61103.0,61102.0,0.257118]
[1728503805756,0.30336745,61103.0,61102.0,0.257118]
[1728503805968,0.20529191,61103.0,61102.0,0.257118]
[1728503810700,0.32790149,61103.0,61102.0,0.257118]
[1728503810920,0.32616702,61103.0,61102.0,0.257118]
[1728503811135,0.32786702,61103.0,61102.0,0.257118]
[1728503811861,0.20525744,61103.0,61102.0,0.257118]
[1728503812073,0.20699191,61103.0,61102.0,0.257118]
[1728503820655,0.35424062,61103.0,61102.0,0.257118]
[1728503820896,0.35250615,61103.0,61102.0,0.257118]
[1728503823707,0.20525744,61103.0,61102.0,0.257118]
[1728503823947,0.20699191,61103.0,61102.0,0.257118]
[1728503824443,0.3327493,61103.0,61102.0,0.257118]
[1728503824677,0.33101483,61103.0,61102.0,0.257118]
[1728503827511,0.478368,61103.0,61102.0,0.257118]
[1728503827728,0.33101483,61103.0,61102.0,0.257118]
[1728503830009,0.33101483,61103.0,61102.0,0.000818]
[1728503830010,0.63787967,61103.0,61102.0,0.000818]
[1728503830221,0.90865199,61103.0,61102.0,0.000818]
[1728503830449,0.74287967,61103.0,61102.0,0.000818]
[1728503832259,0.59685247,61103.0,61102.0,0.000818]
[1728503834736,0.33101483,61103.0,61102.0,0.093218]
[1728503834958,0.33101483,61103.0,61102.0,0.170018]
[1728503836218,0.28004426,61103.0,61102.0,0.170018]
[1728503838877,0.28004426,61103.0,61102.0,0.077618]
[1728503841621,0.28004426,61103.0,61102.0,0.000818]
[1728503842075,0.67549017,61103.0,61102.0,0.000818]
[1728503842416,0.68049017,61103.0,61102.0,0.000818]
[1728503842774,0.67549017,61103.0,61102.0,0.000818]
[1728503842975,0.68049017,61103.0,61102.0,0.000818]
[1728503844500,0.74645015,61103.0,61102.0,0.000818]
[1728503846190,0.44600424,61103.0,61102.0,0.000818]
[1728503860151,0.60684188,61103.0,61102.0,0.000818]
[1728503860566,0.68324188,61103.0,61102.0,0.000818]
[1728503860771,0.68824188,61103.0,61102.0,0.000818]
[1728503862750,0.68824188,61103.0,61102.0,0.000818]
[1728503864498,0.62234691,61103.0,61102.0,0.000818]
[1728503864717,0.42012451,61103.0,61102.0,0.000818]
[1728503864921,0.54594691,61103.0,61102.0,0.000818]
[1728503866620,0.61181543,61103.0,61102.0,0.000818]
[1728503887265,0.42012451,61103.0,61102.0,0.000818]
[1728503887513,0.61181543,61103.0,61102.0,0.000818]
[1728503887740,0.77118737,61103.0,61102.0,0.000818]
[1728503888604,0.7052976,61103.0,61102.0,0.000818]
[1728503895873,0.327355,61096.0,61089.0,0.33982827]
[1728503896094,0.28949315,61090.0,61089.0,0.33982827]
[1728503896536,0.28949315,61090.0,61089.0,0.0946]
[1728503897360,0.28949315,61090.0,61087.0,0.0763]
[1728503897361,0.163698,61088.0,61087.0,0.0763]
[1728503897562,0.163706,61085.0,61084.0,0.0934]
[1728503897804,0.28950715,61085.0,61084.0,0.0934]
[1728503898674,0.28950715,61085.0,61079.0,0.000818]
[1728503898675,0.163719,61080.0,61079.0,0.168918]
[1728503898890,0.29125462,61080.0,61079.0,0.168918]
[1728503899172,0.40194885,61080.0,61079.0,0.076318]
[1728503899388,0.40021438,61080.0,61079.0,0.000818]
[1728503900457,0.40321438,61080.0,61079.0,0.000818]
[1728503900711,0.40621438,61080.0,61079.0,0.000818]
[1728503900918,0.56705202,61080.0,61079.0,0.000818]
[1728503901561,0.67205202,61080.0,61079.0,0.000818]
[1728503903066,0.66105202,61080.0,61079.0,0.000818]
[1728503903272,0.66275202,61080.0,61079.0,0.000818]
[1728503903505,0.16373,61076.0,61075.0,0.000818]
[1728503903693,0.45210326,61076.0,61075.0,0.000818]
[1728503903899,0.45036879,61076.0,61075.0,0.000818]
[1728503905016,0.33856764,61076.0,61075.0,0.000818]
[1728503905177,0.46436879,61076.0,61075.0,0.000818]
[1728503906158,0.47836879,61076.0,61075.0,0.000818]
[1728503906400,0.46436879,61076.0,61075.0,0.000818]
[1728503906886,0.47836879,61076.0,61075.0,0.000818]
[1728503907100,0.68494527,61076.0,61075.0,0.000818]
[1728503908650,0.40380234,61076.0,61075.0,0.000818]
[1728503908857,0.36876585,61076.0,61075.0,0.083218]
[1728503909081,0.2429647,61076.0,61075.0,0.083218]
[1728503909313,0.028,61076.0,61075.0,0.174118]
[1728503909778,0.028,61076.0,61075.0,0.50068864]
[1728503909991,0.028,61076.0,61075.0,0.49868864]
[1728503910629,0.0017,61080.0,61079.0,0.163722]
[1728503910850,0.0017,61080.0,61079.0,0.339122]
[1728503911702,0.165419,61080.0,61079.0,0.1754]
[1728503911914,0.0017,61080.0,61079.0,0.1754]
[1728503912128,0.165419,61080.0,61079.0,0.1754]
[1728503913049,0.165419,61080.0,61079.0,0.1764]
[1728503913266,0.0017,61080.0,61079.0,0.1754]
[1728503913472,0.165419,61080.0,61079.0,0.1754]
[1728503913706,0.166419,61080.0,61079.0,0.1754]
[1728503921338,0.168055,61080.0,61079.0,0.1754]
[1728503921946,0.004336,61080.0,61079.0,0.339122]
[1728503928032,0.004336,61080.0,61079.0,0.49995964]
[1728503928243,0.004336,61080.0,61079.0,0.52295964]
[1728503928663,0.004336,61080.0,61079.0,0.52495964]
[1728503929100,0.004336,61080.0,61079.0,0.52295964]
[1728503929747,0.24522827,61093.0,61084.0,0.007]
[1728503929957,0.24522827,61093.0,61092.0,0.163687]
[1728503930175,0.24522827,61093.0,61091.0,0.32738]
[1728503930391,0.163678,61096.0,61091.0,0.32738]
[1728503930601,0.163678,61096.0,61092.0,0.163686]
[1728503930819,0.163681,61095.0,61092.0,0.163686]
[1728503931011,0.327345,61098.0,61092.0,0.327374]
[1728503931221,0.014,61093.0,61092.0,0.163685]
[1728503931354,0.014,61093.0,61091.0,0.163688]
[1728503931554,0.163681,61095.0,61091.0,0.163688]
[1728503931766,0.163681,61095.0,61092.0,0.163687]
[1728503932627,0.011,61093.0,61092.0,0.163687]
[1728503933031,0.163676,61097.0,61093.0,0.163683]
[1728503933235,0.327344,61098.0,61092.0,0.406274]
[1728503933236,0.014,61095.0,61092.0,0.406274]
[1728503933438,0.028,61095.0,61093.0,0.163684]
[1728503933640,0.028,61095.0,61092.0,0.0799]
[1728503933856,0.163684,61093.0,61092.0,0.0789]
[1728503934332,0.163683,61094.0,61092.0,0.0789]
[1728503934464,0.014,61093.0,61092.0,0.0789]
[1728503934883,0.014,61093.0,61092.0,0.49392464]
[1728503935090,0.014,61093.0,61092.0,0.49592464]
[1728503935276,0.014,61093.0,61092.0,0.50249146]
[1728503935900,0.014,61097.0,61096.0,0.163676]
[1728503936130,0.177674,61097.0,61096.0,0.0789]
[1728503936539,0.163674,61097.0,61096.0,0.0789]
[1728503937372,0.168674,61097.0,61096.0,0.0789]
[1728503938756,0.173674,61097.0,61096.0,0.0789]
[1728503940381,0.01,61097.0,61096.0,0.0789]
[1728503940713,0.173674,61097.0,61096.0,0.0789]
[1728503941090,0.01,61097.0,61096.0,0.0789]
[1728503941291,0.173674,61097.0,61096.0,0.0789]
[1728503941902,0.173674,61097.0,61081.0,0.002]
[1728503941903,0.163698,61088.0,61087.0,0.083]
[1728503942105,0.163711,61083.0,61082.0,0.1781]
[1728503943431,0.163711,61083.0,61079.0,0.000818]
[1728503943432,0.163719,61080.0,61079.0,0.000818]
[1728503943636,0.40664705,61080.0,61079.0,0.000818]
[1728503944475,0.21490897,61080.0,61079.0,0.000818]
[1728503944683,0.05118997,61080.0,61079.0,0.16454]
[1728503944937,0.333425,61083.0,61079.0,0.164539]
[1728503945154,0.006,61083.0,61082.0,0.163714]
[1728503945388,0.005,61083.0,61082.0,0.163714]
[1728503945924,0.005,61083.0,61081.0,0.00327398]
[1728503946136,0.005,61083.0,61080.0,0.000818]
[1728503946362,0.163717,61081.0,61080.0,0.000818]
[1728503946625,0.35545508,61081.0,61080.0,0.000818]
[1728503946869,0.60068335,61081.0,61080.0,0.000818]
[1728503947096,0.327451,61078.0,61075.0,0.000818]
[1728503947358,0.45547608,61073.0,61072.0,0.04909779]
[1728503947593,0.74108225,61073.0,61072.0,0.04909779]
[1728503947801,0.79216128,61073.0,61072.0,0.04909779]
[1728503948037,1.045649,61073.0,61072.0,0.04909779]
[1728503948256,1.045649,61073.0,61063.0,0.24604627]
[1728503948257,0.35549708,61065.0,61063.0,0.000818]
[1728503948486,0.35549708,61065.0,61064.0,0.24604627]
[1728503948487,0.69708891,61065.0,61064.0,0.24604627]
[1728503948720,0.89794576,61065.0,61064.0,0.000818]
[1728503949157,0.89794576,61065.0,61059.0,0.14729338]
[1728503949158,0.163767,61062.0,61059.0,0.14729338]
[1728503949381,0.45552208,61056.0,61055.0,0.000819]
[1728503949594,0.68969542,61056.0,61055.0,0.000819]
[1728503949851,0.61635972,61056.0,61055.0,0.000819]
[1728503950065,1.06041434,61056.0,61055.0,0.000819]
[1728503950281,0.78216633,61056.0,61055.0,0.000819]
[1728503950718,0.46053208,61052.0,61051.0,0.000818]
[1728503950965,0.62136972,61052.0,61051.0,0.000818]
[1728503951235,0.45553208,61052.0,61051.0,0.000818]
[1728503952394,0.49044416,61052.0,61051.0,0.000818]
[1728503953265,0.45553208,61052.0,61051.0,0.000818]
[1728503957046,0.46653208,61052.0,61051.0,0.000818]
[1728503957515,0.36753208,61052.0,61051.0,0.000818]
[1728503957730,0.175794,61052.0,61051.0,0.000818]
[1728503957947,0.17652847,61052.0,61051.0,0.000818]
[1728503958177,0.184794,61052.0,61051.0,0.000818]
[1728503958644,0.44871908,61052.0,61051.0,0.000818]
[1728503958866,0.46432845,61052.0,61051.0,0.000818]
[1728503960505,0.46432845,61052.0,61048.0,0.001636]
[1728503960506,0.163802,61049.0,61048.0,0.001636]
[1728503960967,0.021,61052.0,61048.0,0.001636]
[1728503961190,0.184794,61052.0,61049.0,0.24331326]
[1728503961413,0.021,61052.0,61049.0,0.24331326]
[1728503961656,0.021,61052.0,61051.0,0.263097]
[1728503961891,0.011,61052.0,61051.0,0.42721019]
[1728503962115,0.16379,61054.0,61051.0,0.26013764]
[1728503962338,0.16379,61054.0,61052.0,0.16083764]
[1728503962568,0.163791,61054.0,61052.0,0.16083764]
[1728503962995,0.163781,61057.0,61053.0,0.16379]
[1728503963262,0.163784,61056.0,61053.0,0.00327548]
[1728503963519,0.163773,61060.0,61056.0,0.163783]
[1728503963748,0.163773,61060.0,61056.0,0.16705832]
[1728503963973,0.163768,61062.0,61058.0,0.163778]
[1728503964195,0.163768,61062.0,61058.0,0.16705322]
[1728503964664,0.163768,61062.0,61048.0,0.001636]
[1728503964665,0.163794,61052.0,61048.0,0.001636]
[1728503964889,0.163791,61054.0,61048.0,0.001636]
[1728503965125,0.19173808,61061.0,61056.0,0.001]
[1728503965126,0.177781,61057.0,61056.0,0.001]
[1728503965595,0.164775,61060.0,61056.0,0.16183764]
[1728503965831,0.001,61060.0,61056.0,0.16183764]
[1728503966065,0.163779,61058.0,61056.0,0.16183764]
[1728503966317,0.001,61060.0,61056.0,0.16183764]
[1728503966560,0.163781,61057.0,61056.0,0.16183764]
[1728503966801,0.163781,61057.0,61051.0,0.1043]
[1728503966802,0.163794,61052.0,61051.0,0.0993]
[1728503967036,0.327557,61058.0,61051.0,0.0993]
[1728503967037,0.16378,61058.0,61053.0,0.163791]
[1728503967272,0.008,61060.0,61054.0,0.1670624]
[1728503967504,0.008,61060.0,61054.0,0.0032754]
[1728503967766,0.163782,61057.0,61054.0,0.0032754]
[1728503967998,0.163784,61056.0,61054.0,0.0032754]
[1728503968232,0.327559,61058.0,61053.0,0.00327548]
[1728503968464,0.327559,61058.0,61053.0,0.163789]
[1728503968677,0.163783,61057.0,61054.0,0.16706445]
[1728503968889,0.327559,61058.0,61053.0,0.163791]
[1728503969125,0.163785,61056.0,61053.0,0.163791]
[1728503969365,0.332563,61057.0,61051.0,0.58773164]
[1728503969366,0.163787,61055.0,61052.0,0.163794]
[1728503969615,0.006,61060.0,61052.0,0.16083764]
[1728503969864,0.006,61060.0,61051.0,0.0993]
[1728503969865,0.163794,61052.0,61051.0,0.100119]
[1728503970102,0.39643431,61052.0,61051.0,0.000819]
[1728503970332,0.35553208,61052.0,61051.0,0.000819]
[1728503970808,0.163794,61052.0,61051.0,0.000819]
[1728503971519,0.001,61052.0,61051.0,0.000819]
[1728503971744,0.001,61052.0,61051.0,0.16789161]
[1728503971974,0.002,61052.0,61051.0,0.16789161]
[1728503972211,0.002,61052.0,61051.0,0.32872925]
[1728503972452,0.002,61052.0,61051.0,0.53725364]
[1728503973386,0.002,61052.0,61051.0,0.63725364]
[1728503973628,0.24522827,61065.0,61051.0,0.63725364]
[1728503973629,0.24522827,61065.0,61058.0,0.55981608]
[1728503973854,0.24522827,61065.0,61058.0,0.72065372]
[1728503974336,0.24522827,61072.0,61058.0,0.82065372]
[1728503974587,0.24522827,61072.0,61071.0,0.253843]
[1728503974842,0.24522827,61072.0,61071.0,0.50388064]
[1728503975350,0.0098,61077.0,61072.0,0.332481]
[1728503975586,0.173529,61077.0,61073.0,0.32457464]
[1728503975812,0.163731,61076.0,61073.0,0.32457464]
[1728503976029,0.0098,61077.0,61073.0,0.16083764]
[1728503976930,0.163741,61072.0,61071.0,0.1743]
[1728503977146,0.163741,61072.0,61071.0,0.33513764]
[1728503977359,0.0098,61077.0,61071.0,0.33513764]
[1728503977565,0.340255,61077.0,61071.0,0.33265913]
[1728503977790,0.163734,61075.0,61071.0,0.49640213]
[1728503978009,0.163734,61075.0,61071.0,0.17182149]
[1728503978010,0.163741,61072.0,61071.0,0.17182149]
[1728503978232,0.327462,61076.0,61070.0,0.163746]
[1728503978457,0.327462,61076.0,61071.0,0.00327449]
[1728503978458,0.164741,61072.0,61071.0,0.00327449]
[1728503978674,0.002,61072.0,61071.0,0.163743]
[1728503978888,0.002,61072.0,61071.0,0.16701747]
[1728503979110,0.002,61072.0,61070.0,0.32458364]
[1728503979357,0.001,61072.0,61070.0,0.16083764]
[1728503979580,0.163743,61071.0,61070.0,0.16083764]
[1728503980262,0.163733,61075.0,61071.0,0.163741]
[1728503980492,0.16374,61073.0,61070.0,0.16083764]
[1728503980707,0.0098,61077.0,61070.0,0.16083764]
[1728503980934,0.16374,61073.0,61070.0,0.16083764]
[1728503981152,0.0033,61071.0,61070.0,0.32458164]
[1728503981792,0.0033,61071.0,61067.0,0.409208]
[1728503981793,0.0033,61071.0,61067.0,0.0817]
[1728503982018,0.0033,61071.0,61068.0,0.327501]
[1728503982241,0.0033,61071.0,61069.0,0.33077156]
[1728503982490,0.0033,61071.0,61070.0,0.16411204]
[1728503982711,0.0033,61071.0,61070.0,0.16083764]
[1728503983685,0.0033,61071.0,61070.0,0.32458364]
[1728503983909,0.0033,61071.0,61070.0,0.16083764]
[1728503983910,0.167043,61071.0,61070.0,0.16083764]
[1728503984341,0.0033,61071.0,61070.0,0.16083764]
[1728503984575,0.0033,61071.0,61067.0,0.0817]
[1728503984815,0.163759,61066.0,61062.0,0.0915]
[1728503985046,0.327504,61068.0,61064.0,0.163762]
[1728503985271,0.163757,61066.0,61065.0,0.16083764]
[1728503985540,0.163757,61066.0,61039.0,0.25]
[1728503985541,0.19173808,61065.0,61056.0,0.005]
[1728503985785,0.330788,61071.0,61061.0,0.24522827]
[1728503986006,0.330788,61071.0,61057.0,0.16083764]
[1728503986007,0.327542,61061.0,61057.0,0.16378]
[1728503986239,0.163766,61063.0,61059.0,0.163774]
[1728503986468,0.19173808,61062.0,61051.0,0.005819]
[1728503986699,0.327542,61061.0,61054.0,0.16083764]
[1728503986927,0.163781,61058.0,61054.0,0.16083764]
[1728503987153,0.327537,61062.0,61054.0,0.16083764]
[1728503987374,0.327548,61060.0,61054.0,0.16083764]
[1728503987609,0.163773,61060.0,61056.0,0.163782]
[1728503987855,0.327556,61059.0,61054.0,0.16083764]
[1728503988086,0.655098,61060.0,61054.0,0.003]
[1728503988313,0.43696635,61062.0,61054.0,0.005]
[1728503988314,0.327566,61057.0,61054.0,0.005]
[1728503988539,0.163786,61055.0,61054.0,0.003]
[1728503988766,0.163783,61057.0,61056.0,0.002]
[1728503988987,0.163778,61058.0,61056.0,0.002]
[1728503989210,0.327555,61059.0,61054.0,0.166787]
[1728503989663,0.163781,61057.0,61054.0,0.166787]
[1728503989667,0.163786,61056.0,61054.0,0.003]
[1728503989882,0.327555,61059.0,61054.0,0.003]
[1728503990143,0.163781,61057.0,61054.0,0.166788]
[1728503990341,0.327555,61059.0,61053.0,0.0817]
[1728503990554,0.163782,61057.0,61056.0,0.002]
[1728503991015,0.327555,61059.0,61053.0,0.24549]
[1728503991231,0.327555,61059.0,61053.0,0.0817]
[1728503991232,0.163784,61056.0,61053.0,0.0817]
[1728503991447,0.163787,61055.0,61053.0,0.0817]
[1728503991660,0.327548,61060.0,61053.0,0.0827]
[1728503991881,0.327548,61060.0,61054.0,0.163788]
[1728503991882,0.163778,61058.0,61054.0,0.163788]
[1728503992335,0.163778,61058.0,61055.0,0.163786]
[1728503992564,0.163778,61058.0,61054.0,0.163787]
[1728503992792,0.327556,61059.0,61054.0,0.163787]
[1728503992793,0.165782,61057.0,61054.0,0.163787]
[1728503993029,0.002,61057.0,61056.0,0.163784]
[1728503993240,0.002,61057.0,61056.0,0.32789694]
[1728503993472,0.327514,61066.0,61059.0,0.327551]
[1728503993705,0.57272627,61069.0,61060.0,0.16411255]
[1728503993706,0.327504,61068.0,61060.0,0.16411255]
[1728503993939,0.16376,61065.0,61062.0,0.163767]
[1728503994197,0.24522827,61069.0,61054.0,0.000818]
[1728503994438,0.19173808,61065.0,61055.0,0.00327526]
[1728503994902,0.163778,61059.0,61055.0,0.16706026]
[1728503995141,0.19173808,61065.0,61055.0,0.16706026]
[1728503995142,0.16378,61058.0,61055.0,0.00327526]
[1728503995388,0.163761,61065.0,61061.0,0.163769]
[1728503995622,0.19173808,61069.0,61056.0,0.16083764]
[1728503995623,0.163781,61057.0,61056.0,0.16083764]
[1728503995840,0.163781,61057.0,61056.0,0.002]
[1728503996291,0.163786,61055.0,61054.0,0.000818]
[1728503996774,0.327552,61059.0,61054.0,0.164606]
[1728503997014,0.327563,61057.0,61054.0,0.000818]
[1728503997243,0.19173808,61064.0,61057.0,0.16378]
[1728503997477,0.19173808,61064.0,61055.0,0.001]
[1728503997478,0.327541,61061.0,61055.0,0.001]
[1728503997723,0.327541,61061.0,61054.0,0.000818]
[1728503997938,0.327547,61060.0,61054.0,0.328394]
[1728503998153,0.327548,61060.0,61054.0,0.000818]
[1728503998364,0.19173808,61068.0,61055.0,0.16411296]
[1728503998596,0.163769,61062.0,61059.0,0.163775]
[1728503999039,0.327523,61065.0,61056.0,0.327564]
[1728503999286,0.19173808,61068.0,61057.0,0.00327518]
[1728503999497,0.16377,61061.0,61057.0,0.33083418]
[1728503999722,0.327532,61063.0,61055.0,0.48840864]
[1728503999934,0.001,61062.0,61059.0,0.163774]
[1728504000166,0.001,61062.0,61058.0,0.16083764]
[1728504000640,0.32752,61065.0,61058.0,0.16083764]
[1728504000876,0.163774,61060.0,61058.0,0.16083764]
[1728504001106,0.327526,61064.0,61058.0,0.16083764]
[1728504001107,0.163771,61061.0,61058.0,0.16083764]
[1728504001354,0.163771,61061.0,61058.0,0.32461564]
[1728504001573,0.327514,61066.0,61057.0,0.001]
[1728504001789,0.163778,61058.0,61057.0,0.001]
[1728504002239,0.001,61061.0,61054.0,0.000818]
[1728504002533,0.163786,61055.0,61054.0,0.000818]
[1728504002775,0.35552408,61055.0,61054.0,0.000818]
[1728504003732,0.56534313,61055.0,61054.0,0.000818]
[1728504003951,0.56534313,61055.0,61051.0,0.000819]
[1728504003952,0.163794,61052.0,61051.0,0.000819]
[1728504004168,0.94125049,61052.0,61051.0,0.000819]
[1728504004392,1.0639171,61052.0,61051.0,0.000819]
[1728504004644,1.0639171,61052.0,61030.0,0.24522827]
[1728504004645,0.163832,61038.0,61030.0,0.24522827]
[1728504004871,0.52892829,61038.0,61030.0,0.24522827]
[1728504005116,0.75876184,61038.0,61030.0,0.24522827]
[1728504005350,0.04894444,61039.0,61037.0,0.16083764]
[1728504005578,0.1469173,61049.0,61030.0,0.23367888]
[1728504005579,0.24522827,61038.0,61035.0,0.1012]
[1728504005825,0.24522827,61046.0,61036.0,0.00809631]
[1728504006075,0.163821,61042.0,61035.0,0.423876]
[1728504006336,0.24522827,61046.0,61027.0,0.1]
[1728504006337,0.16384,61035.0,61031.0,0.163849]
[1728504006571,0.163849,61032.0,61031.0,0.000818]
[1728504006814,0.16558347,61032.0,61031.0,0.000818]
[1728504007042,0.014,61038.0,61031.0,0.000818]
[1728504007043,0.01,61039.0,61031.0,0.16165564]
[1728504007271,0.163838,61036.0,61032.0,0.16411411]
[1728504007499,0.163841,61035.0,61031.0,0.000818]
[1728504007729,0.25512827,61039.0,61031.0,0.000818]
[1728504007966,0.04895018,61038.0,61031.0,0.000818]
[1728504008187,0.24502827,61039.0,61031.0,0.000818]
[1728504008188,0.163844,61034.0,61031.0,0.000818]
[1728504008457,0.163844,61034.0,61031.0,0.164668]
[1728504008709,0.163648,61032.0,61031.0,0.000818]
[1728504009004,0.163248,61032.0,61031.0,0.000818]
[1728504009217,0.163148,61032.0,61031.0,0.000818]
[1728504009453,0.162948,61032.0,61031.0,0.000818]
[1728504009680,0.162448,61032.0,61031.0,0.000818]
[1728504009917,0.162348,61032.0,61031.0,0.000818]
[1728504010151,0.162148,61032.0,61031.0,0.001818]
[1728504010368,0.162148,61032.0,61031.0,0.000818]
[1728504010369,0.161848,61032.0,61031.0,0.000818]
[1728504010588,0.166448,61032.0,61031.0,0.000818]
[1728504010821,0.172348,61032.0,61031.0,0.000818]
[1728504011045,0.167148,61032.0,61031.0,0.000818]
[1728504011263,0.33898564,61032.0,61031.0,0.000818]
[1728504011533,0.44710735,61032.0,61031.0,0.000818]
[1728504011754,0.163894,61016.0,61009.0,0.00245]
[1728504011987,0.00173447,61015.0,61010.0,0.24472827]
[1728504012201,0.163896,61015.0,61010.0,0.163904]
[1728504012452,0.327792,61015.0,61009.0,0.00245]
[1728504012678,0.327777,61018.0,61009.0,0.16328764]
[1728504012908,0.57300527,61017.0,61009.0,0.49110464]
[1728504013131,0.163893,61016.0,61012.0,0.163899]
[1728504013355,0.57300927,61017.0,61010.0,0.003]
[1728504013571,0.32779,61015.0,61010.0,0.003]
[1728504013885,0.001,61016.0,61015.0,0.163894]
[1728504014210,0.164886,61018.0,61015.0,0.163894]
[1728504014420,0.001,61018.0,61014.0,0.163896]
[1728504014638,0.327777,61017.0,61012.0,0.163902]
[1728504014845,0.163895,61015.0,61009.0,0.330269]
[1728504015060,0.1639,61013.0,61009.0,0.00245]
[1728504015283,0.163895,61015.0,61011.0,0.163903]
[1728504015487,0.32779,61015.0,61009.0,0.00245]
[1728504015741,0.327797,61014.0,61009.0,0.00245]
[1728504015919,0.328785,61016.0,61009.0,0.00245]
[1728504016119,0.19173808,61015.0,61009.0,0.00245]
[1728504016344,0.163903,61012.0,61009.0,0.166359]
[1728504016610,0.327795,61014.0,61012.0,0.002]
[1728504016754,0.163899,61013.0,61012.0,0.002]
[1728504016954,0.163907,61011.0,61009.0,0.00245]
[1728504017193,0.16564147,61010.0,61009.0,0.00445]
[1728504017389,0.16564147,61010.0,61009.0,0.00245]
[1728504017832,0.57170738,61010.0,61009.0,0.00245]
[1728504018032,0.56997291,61010.0,61009.0,0.00245]
[1728504018378,0.42474464,61010.0,61009.0,0.00445]
[1728504018611,0.58533321,61010.0,61009.0,0.00445]
[1728504019084,0.163907,61010.0,61009.0,0.00445]
[1728504019228,0.24522827,61025.0,61010.0,0.327815]
[1728504019432,0.163899,61013.0,61010.0,0.163906]
[1728504019629,0.163907,61010.0,61009.0,0.00445]
[1728504019845,0.006,61010.0,61009.0,0.00245]
[1728504021896,0.017,61010.0,61009.0,0.16636]
[1728504023569,0.02026,61010.0,61009.0,0.16636]
[1728504023805,0.02166,61010.0,61009.0,0.16636]
[1728504025389,0.02166,61010.0,61009.0,0.16136]
[1728504028127,0.02266,61010.0,61009.0,0.16136]
[1728504029209,0.02266,61010.0,61005.0,0.32784]
[1728504029437,0.02266,61010.0,61003.0,0.327848]
[1728504029438,0.163913,61008.0,61003.0,0.327848]
[1728504029671,0.0137,61010.0,61002.0,0.000818]
[1728504029672,0.327839,61006.0,61002.0,0.000818]